Cogmind - Beta 11 @@@ ROGUE MODE // 2022.04.16 @ 16:52:41 Player: Awoo-Bot Result: Destroyed by X-62 Marksman with Pulse Rifle Performance ------------- Evolutions (2) 1000 Regions Visited (5) 1000 Robots Destroyed (56) 280 Value Destroyed (1170) 1170 Prototype IDs (3) 60 Alien Tech Used (0) 0 Bonus (229) 229 TOTAL SCORE: 3739 Bonus ------- Follower Combat Kills 229 Cogmind --------- Core Integrity 0/550 Matter 161/300 Energy 138/265 System Corruption 0% Temperature Cool (9) Movement Rolling (155) Ox5 Location -8/Materials Parts ------- > --- POWER (1) -------- Improved Ion Engine > --- PROPULSION (3) --- Wheel > --- UTILITY (5) ------ High-capacity Storage Unit Visual Processing Unit Signal Interpreter > --- WEAPON (2) ------- Flail Makeshift Axe > --- INVENTORY (20) --- Cooling System High-capacity Storage Unit Salvage Targeting Computer Targeting Computer Advanced Targeting Computer Hacking Suite System Shield Datajack Peak State ------------ > --- POWER ------------ Improved Ion Engine > --- PROPULSION ------- Light Treads Armored Treads Advanced Treads > --- UTILITY ---------- High-capacity Storage Unit Visual Processing Unit Experimental Sensor Array Signal Interpreter Hardened Medium Armor Plating > --- WEAPON ----------- Heavy Assault Rifle Autogun > --- INVENTORY -------- Improved Ion Engine Wheel Cooling System High-capacity Storage Unit Salvage Targeting Computer Targeting Computer Advanced Targeting Computer Hacking Suite System Shield Improved Light Cannon Grenade Launcher Missile Launcher Datajack Flail Makeshift Axe [Rating: 32] Favorites ----------- Power Ion Engine Engine Ion Engine Propulsion Advanced Treads Treads Advanced Treads Wheel Wheel Utility High-capacity Storage Unit Device Seismic Detector Storage High-capacity Storage Unit Processor Visual Processing Unit Protection Hardened Medium Armor Plating Weapon Heavy Assault Rifle Energy Gun Small Laser Ballistic Gun Heavy Assault Rifle Ballistic Cannon Improved Light Cannon Launcher Missile Launcher Special Weapon Welding Torch Impact Weapon Flail Slashing Weapon Makeshift Axe Build | -11 -10 -10 -9 -9 -8 ------- Run | Scr Mat Min Mat Min Mat Slots Evolved 4 | . . . 2 . 2 Power . | . . . . . . Propulsion 1 | . . . 1 . . Utility 3 | . . . 1 . 2 Weapon . | . . . . . . Parts Attached 80 | 8 7 5 23 23 14 Power 7 | 1 1 . 3 1 1 Engine 7 | 1 1 . 3 1 1 Core . | . . . . . . Reactor . | . . . . . . Propulsion 26 | 2 1 3 3 14 3 Treads 12 | 2 . 2 2 4 2 Leg . | . . . . . . Wheel 14 | . 1 1 1 10 1 Hover . | . . . . . . Flight . | . . . . . . Utility 12 | 3 3 . 2 1 3 Device 4 | 2 . . 1 . 1 Storage 4 | 1 3 . . . . Processor 2 | . . . 1 . 1 Hackware . | . . . . . . Protection 2 | . . . . 1 1 Artifact . | . . . . . . Weapon 35 | 2 2 2 15 7 7 Energy Gun 7 | 1 1 1 4 . . Energy Cannon . | . . . . . . Ballistic Gun 13 | 1 . . 7 4 1 Ballistic Cannon 1 | . . . . . 1 Launcher 9 | . . 1 4 2 2 Special Weapon 1 | . 1 . . . . Impact Weapon 1 | . . . . . 1 Slashing Weapon 3 | . . . . 1 2 Piercing Weapon . | . . . . . . Special Melee Weapon . | . . . . . . Unidentified Prototypes 3 | . . . 2 . 1 Parts Lost 24 | . 1 1 2 9 11 Power 2 | . . . . 1 1 Propulsion 8 | . 1 1 . 4 2 Utility 4 | . . . . 1 3 Weapon 10 | . . . 2 3 5 Highest Loss Streak 10 | . 1 1 1 5 10 To Critical Strikes . | . . . . . . Average Slot Usage (%) 98 | . 100 100 98 94 91 Engine 12 | . 14 14 10 10 8 Treads 23 | . 17 26 29 13 24 Wheel 6 | . 10 1 3 15 . Device 9 | . 14 14 11 . 6 Storage 12 | . 14 14 11 11 9 Processor 6 | . . . 11 11 16 Protection 2 | . . . . 10 8 Energy Gun 7 | . 13 13 5 . . Ballistic Gun 15 | . 14 14 15 21 12 Naked Turns . | . . . . . . Heaviest Build 65 | 13 48 48 57 65 62 Greatest Support 64 | 40 40 44 64 64 62 Greatest Overweight (x) 6 | . 2 2 5 6 5 Average Overweight (x) 1 | . . 1 1 2 . Largest Inventory Capacity 20 | 8 20 20 20 20 20 Average Capacity 18 | 7 11 20 20 20 20 Most Carried 20 | 4 16 19 20 20 19 Average Carried 15 | 3 6 18 17 16 15 Final Capacity 20 | 8 20 20 20 20 20 Final Carried 20 | 4 16 19 19 20 8 Class Distribution -------------------- 61% | Mutant 26% | Commander-Mutant 8% | Scavenger-Mutant Dominant Class ---------------- Mutant | -10/Materials Commander-Mutant | -10/Mines Mutant | -9/Materials Mutant | -9/Mines Scavenger-Assassin | -8/Materials Resources | -11 -10 -10 -9 -9 -8 ----------- Run | Scr Mat Min Mat Min Mat Matter Collected 1843 | 254 91 141 530 707 120 Remotely 111 | 111 . . . . . Salvage Created 1650 | 83 355 56 532 391 233 Parts 108 | 3 26 11 28 16 24 Haulers Intercepted 2 | . . . 1 . 1 Recyclers Shooed 2 | . . . . 1 1 Parts Field Recycled . | . . . . . . Retrieved Matter . | . . . . . . Parts Self-Destructed . | . . . . . . Prevented . | . . . . . . Kills | -11 -10 -10 -9 -9 -8 ------- Run | Scr Mat Min Mat Min Mat Combat Hostiles Destroyed 56 | . 9 5 11 23 8 Melee 3 | . . . . 1 2 Guns 35 | . 9 2 8 14 2 Cannons 1 | . . . . . 1 AOE 16 | . . 3 2 8 3 Classes Destroyed 12 | 2 3 1 3 1 2 Worker 6 | . . 1 1 3 1 Builder 5 | . . . 1 . 4 Tunneler 2 | 1 . . . 1 . Hauler 2 | . . . 1 . 1 Recycler 1 | 1 . . . . . Watcher 2 | . 1 . . . 1 Swarmer 18 | . 3 5 3 3 4 Grunt 11 | . 6 . 4 . 1 Sentry 7 | . . . 4 2 1 Specialist 1 | . . . . . 1 Heavy 1 | . . . . . 1 Assembled 18 | . . . . 18 . Best Kill Streak 14 | 1 3 4 4 6 14 Combat Bots Only 7 | . 3 3 4 6 7 Max Kills in Single Turn 5 | 1 1 3 2 3 5 Gunslinging 1 | . . . 1 . . Exploded 3 | . . 2 1 3 2 Melee 1 | . . . . 1 1 Uniques/NPCs Destroyed . | . . . . . . Combat | -11 -10 -10 -9 -9 -8 -------- Run | Scr Mat Min Mat Min Mat Damage Taken 5085 | . 497 186 697 1576 2129 Core 1010 | . 61 8 113 275 553 Absorbed by Shields . | . . . . . . Regen/Repaired (Parts) 194 | . . . 194 . . Core Remaining (%) 58 | 100 . 72 . 3 . Volleys Fired 214 | 11 45 9 59 65 25 Largest 2 | 2 2 2 2 2 2 Hottest 90 | 60 60 60 90 46 46 Shots Fired 373 | 22 84 15 100 120 32 Gun 335 | 22 79 12 93 111 18 Cannon 5 | . . . . . 5 Launcher 28 | . . 3 7 9 9 Special 5 | . 5 . . . . Kinetic 263 | 11 40 6 72 111 23 Thermal 61 | 11 44 6 . . . Explosive 28 | . . 3 7 9 9 Electromagnetic 21 | . . . 21 . . Robot Hit Streak 18 | 6 8 4 10 12 18 Robot Miss Streak 5 | 3 5 2 3 5 2 Penetration Max . | . . . . . . Secondary Targets 5 | . 2 . 1 2 . Max Gunslinging Chain 1 | . 1 . 1 1 . Shots Hit Robots 225 | 14 50 9 54 69 29 Core Hits 129 | 4 22 9 23 45 26 Critical Kills . | . . . . . . Critical Parts Destroyed 1 | . . . . 1 . Critical Strikes 1 | . . . . 1 . Destroy 1 | . . . . 1 . Melee Attacks 20 | . . . . 2 18 Impact . | . . . . . . Slashing 20 | . . . . 2 18 Piercing . | . . . . . . Sneak Attacks . | . . . . . . Combat Hostiles . | . . . . . . Follow-up Attacks . | . . . . . . Damage Inflicted 4857 | 130 494 383 1035 1588 1227 Guns 2627 | 130 494 64 770 946 223 Cannons 106 | . . . . . 106 Explosions 1940 | . . 319 265 590 766 Melee 184 | . . . . 52 132 Ramming . | . . . . . . Kinetic 2203 | 56 182 22 668 946 329 Thermal 466 | 74 312 42 . 38 . Explosive 1902 | . . 319 265 552 766 Electromagnetic 102 | . . . 102 . . Impact . | . . . . . . Slashing 184 | . . . . 52 132 Piercing . | . . . . . . Highest Corruption . | . . . . . . Average Corruption . | . . . . . . Corruption Purged . | . . . . . . Corruption Blocked . | . . . . . . Overload Shots . | . . . . . . Overflow Damage 43 | . . 11 29 . 3 Projectiles . | . . . . . . Explosions 43 | . . 11 29 . 3 Melee . | . . . . . . Knockbacks 1 | . . . . . 1 Impact . | . . . . . . Kinetic 1 | . . . . . 1 Secondary . | . . . . . . Self-Inflicted Damage 238 | . . 54 . 58 126 Shots 12 | . . 1 . 2 9 Rammed . | . . . . . . Targets Rammed . | . . . . . . Kicked . | . . . . . . Crushed . | . . . . . . Highest Temperature 174 | 40 174 40 96 27 87 Average Temperature 34 | 21 64 28 37 5 17 Received Heat Transfer 1053 | . 270 . 270 72 441 Siege Activations . | . . . . . . Robots Corrupted 1 | . . . 1 . . Combat Hostiles 1 | . . . 1 . . Parts Fried 1 | . . . 1 . . Impact Corruptions . | . . . . . . Robots Melted . | . . . . . . Combat Hostiles . | . . . . . . Parts Melted 1 | . 1 . . . . Heat Transferred 1025 | 175 700 100 . 50 . Parts Sabotaged . | . . . . . . Parts Stolen . | . . . . . . Parts Stripped . | . . . . . . Power Chain Reactions . | . . . . . . Missiles Intercepted . | . . . . . . Alert | -11 -10 -10 -9 -9 -8 ------- Run | Scr Mat Min Mat Min Mat Peak Influence 392 | 10 278 147 392 195 189 Initial 36 | . 6 . . 36 24 Average 97 | 2 77 12 243 56 61 Maximum Alert Level 1 | . 1 . 1 . . Low Security (%) 76 | 100 88 100 20 100 100 Level 1 23 | . 11 . 80 . . Level 2 . | . . . . . . Level 3 . | . . . . . . Level 4 . | . . . . . . Level 5 . | . . . . . . High Security . | . . . . . . Max Security . | . . . . . . Squads Dispatched 4 | . . 1 . . 3 Investigation 1 | . . 1 . . . Extermination . | . . . . . . Reinforcement 3 | . . . . . 3 Assault . | . . . . . . Garrison . | . . . . . . Intercept . | . . . . . . Searches Triggered . | . . . . . . Construction Impeded 1 | . . . . . 1 Haulers Reinforced . | . . . . . . Active Scanning Responses . | . . . . . . Cargo Convoy Interrupts . | . . . . . . Stealth | -11 -10 -10 -9 -9 -8 --------- Run | Scr Mat Min Mat Min Mat Distress Signals 5 | . . . 1 1 3 Communications Jammed . | . . . . . . Distress Signals . | . . . . . . Times Spotted 108 | . 16 6 32 31 23 Peak Tracking Total 9 | . 3 3 6 6 9 Tactical Retreats 10 | . 1 . . 6 3 Traps | -11 -10 -10 -9 -9 -8 ------- Run | Scr Mat Min Mat Min Mat Traps Triggered 1 | . . . . . 1 Indirectly . | . . . . . . Trap Hack Attempts . | . . . . . . Triggered . | . . . . . . Disarmed 1 | . 1 . . . . Reprogrammed . | . . . . . . Reused . | . . . . . . Traps Extracted . | . . . . . . Installed . | . . . . . . Triggered . | . . . . . . Machines | -11 -10 -10 -9 -9 -8 ---------- Run | Scr Mat Min Mat Min Mat Machines Disabled 4 | . . . 2 2 . Max in Single Turn 1 | . . . 1 1 . Machines Sabotaged . | . . . . . . Garrisons Compromised . | . . . . . . Overloaded Fab Kills . | . . . . . . Hacking | -11 -10 -10 -9 -9 -8 --------- Run | Scr Mat Min Mat Min Mat Machines Accessed 24 | . 8 1 13 . 2 Terminals 21 | . 8 . 11 . 2 Fabricators . | . . . . . . Repair Stations 1 | . . . 1 . . Recycling Units . | . . . . . . Scanalyzers 1 | . . . 1 . . Garrison Access . | . . . . . . Total Hacks 50 | . 16 1 27 . 6 Successful 38 | . 13 1 20 . 4 Failed 12 | . 3 . 7 . 2 Catastrophic 1 | . . . 1 . . Database Lockouts . | . . . . . . Manual 41 | . 16 . 19 . 6 Terminals 41 | . 16 . 19 . 6 Fabricators . | . . . . . . Repair Stations 6 | . . . 6 . . Recycling Units . | . . . . . . Scanalyzers 2 | . . . 2 . . Garrison Access . | . . . . . . Terminal Hacks 6 | . 3 1 2 . . Open Door 1 | . . 1 . . . Branch Access Points 1 | . . . 1 . . Terminal Index 1 | . 1 . . . . Unreport Threat 2 | . 1 . 1 . . Disarm Traps 1 | . 1 . . . . Fabricator Hacks . | . . . . . . Repair Station Hacks 6 | . . . 6 . . Scan Component 3 | . . . 3 . . Repair 3 | . . . 3 . . Recycling Unit Hacks . | . . . . . . Scanalyzer 2 | . . . 2 . . Insert Component 1 | . . . 1 . . Analyze 1 | . . . 1 . . Garrison Access Hacks . | . . . . . . Unauthorized Hacks 24 | . 10 . 10 . 4 Terminals 24 | . 10 . 10 . 4 Assimilate 6 | . 1 . 3 . 2 Botnet 15 | . 8 . 6 . 1 Operators 3 | . 1 . 1 . 1 Fabricators . | . . . . . . Repair Stations . | . . . . . . Recycling Units . | . . . . . . Scanalyzers . | . . . . . . Garrison Access . | . . . . . . Data Cores Recovered . | . . . . . . Used . | . . . . . . Hacking Detections 19 | . 5 . 12 . 2 Full Trace Events . | . . . . . . Feedback Events . | . . . . . . Feedback Blocked . | . . . . . . Robot Schematics Acquired . | . . . . . . Robots Built . | . . . . . . Authchips . | . . . . . . Time . | . . . . . . Total Robot Build Rating . | . . . . . . Part Schematics Acquired 1 | . . . 1 . . Parts Built . | . . . . . . Authchips . | . . . . . . Time . | . . . . . . Total Part Build Rating . | . . . . . . Parts Repaired 3 | . . . 3 . . Time 108 | . . . 108 . . Parts Recycled . | . . . . . . Recycled Matter . | . . . . . . Retrieved Matter . | . . . . . . Retrieved Components . | . . . . . . Parts Scanalyzed 1 | . . . 1 . . Part Schematics Acquired 1 | . . . 1 . . Parts Damaged . | . . . . . . Bothacking | -11 -10 -10 -9 -9 -8 ------------ Run | Scr Mat Min Mat Min Mat Used RIF Installer . | . . . . . . Robots Hacked . | . . . . . . Non-combat . | . . . . . . Combat . | . . . . . . Robot Hacks Applied . | . . . . . . Relay Couplers Released . | . . . . . . Fabnet Peak Effective % . | . . . . . . Robots Rewired . | . . . . . . Allies Hacked . | . . . . . . Hacks Repelled . | . . . . . . Allies | -11 -10 -10 -9 -9 -8 -------- Run | Scr Mat Min Mat Min Mat Total Allies 7 | . 1 3 2 . 1 Largest Group 5 | . 1 4 5 2 1 Highest-Rated Group 62 | . 10 50 62 26 10 Highest-Rated Ally 16 | . 10 16 16 16 10 Total Orders 8 | . . 5 2 . 1 STAY 5 | . . 3 1 . 1 FOLLOW 3 | . . 2 1 . . Ally Attacks 65 | . . . 65 . . Total Damage 557 | . . . 557 . . Kills 16 | . . . 16 . . Allies Corrupted . | . . . . . . Allies Melted . | . . . . . . Intel | -11 -10 -10 -9 -9 -8 ------- Run | Scr Mat Min Mat Min Mat Robot Analysis Total . | . . . . . . Derelict Logs Recovered 4 | . . 2 . 2 . Drone Launches . | . . . . . . Drone Recoveries . | . . . . . . Exploration | -11 -10 -10 -9 -9 -8 ------------- Run | Scr Mat Min Mat Min Mat Turns Passed 7643 | 125 1144 2233 2080 1598 463 Spaces Moved 3956 | 53 776 991 1105 876 155 Core 5 | 5 . . . . . Treads 2219 | 48 114 913 778 213 153 Legs . | . . . . . . Wheels 1732 | . 662 78 327 663 2 Hover . | . . . . . . Flight . | . . . . . . Fastest Speed 50 | 50 100 105 140 95 155 Average Speed 162 | 149 118 215 150 145 217 Slowest Speed 305 | 160 160 305 155 305 243 Overloaded Moves . | . . . . . . Propulsion Burnouts . | . . . . . . Robots Hopped . | . . . . . . Cave-ins Triggered . | . . . . . . Exploration Rate (%) 65 | 6 99 99 78 97 14 Regions Visited 5 Branch Regions 2 Pre-discovered Areas . | . . . . . . Known Exits Taken 1 | . . . 1 . . Unknown Exits Taken 4 | 1 1 1 . 1 . Scrap Searched 5 | . . 2 . 3 . Spaces Dug 14 | . . . . . 14 Terrain Destroyed 186 | . . 28 26 100 32 Melee 14 | . . . . . 14 Projectile . | . . . . . . AOE 172 | . . 28 26 100 18 Terrain Rammed . | . . . . . . Walls Destroyed . | . . . . . . Machines Disabled . | . . . . . . Actions | -11 -10 -10 -9 -9 -8 --------- Run | Scr Mat Min Mat Min Mat Total 4810 | 76 924 1071 1422 1084 233 Wait 456 | . 76 62 202 101 15 Move 3951 | 52 775 990 1104 875 155 Hop . | . . . . . . Pick Up 47 | 4 15 3 17 7 1 Fast Attach 23 | 8 . 2 4 9 . Attach 27 | . 2 1 7 7 10 Detach 2 | . . 1 . 1 . Swap 31 | . 5 2 13 7 4 Drop 39 | 1 6 1 16 10 5 Fire 214 | 11 45 9 59 65 25 Melee 20 | . . . . 2 18 Ram . | . . . . . . Kick . | . . . . . . Crush . | . . . . . . Escape Stasis . | . . . . . . Rewire . | . . . . . . Trap . | . . . . . . Miscellaneous . | . . . . . . Route ------- -11/Scrapyard -10/Materials (discovered 5 exits: *Mat x3 / *Min x2) -10/Mines (discovered 3 exits: *Mat x2 / [*Exi]) -9/Materials (discovered 4 exits: *Mat x3 / *Min) -9/Mines (discovered 3 exits: *Mat x2 / [*Zio]) -8/Materials History --------- Turn | Location | Event 3 | -11/Scrapyard | Discovered new exit (range 15) 126 | -11/Scrapyard | Entered Materials 253 | -10/Materials | Discovered new exit (range 15) 312 | -10/Materials | Build established: Mutant 534 | -10/Materials | Discovered new exit (range 16) 746 | -10/Materials | Discovered new exit (range 11) 1015 | -10/Materials | Discovered new exit (range 15) 1063 | -10/Materials | Discovered new exit (range 14) 1270 | -10/Materials | Entered Mines 1270 | -10/Mines | Accompanied by 1 ally 1372 | -10/Mines | Met a Derelict shopkeep closing up shop 2063 | -10/Mines | Learned Materials terminal intel 2243 | -10/Mines | Found a hidden stash of uninstalled traps 2349 | -10/Mines | Assisted by bots powering up and referring to "LRC-V3" 2435 | -10/Mines | Discovered new exit (range 15) 2651 | -10/Mines | Build established: Commander-Mutant 3206 | -10/Mines | Deemed a non-threat by the Exiles lab entrance 3206 | -10/Mines | Discovered new exit (range 5) 3247 | -10/Mines | Discovered new exit (range 8) 3503 | -10/Mines | Entered Materials 3503 | -9/Materials | Accompanied by 4 allies 3503 | -9/Materials | Evolved 2 slots: Propulsion x1, Utility x1 3504 | -9/Materials | Loaded intel: 12 terminal locations 3733 | -9/Materials | Discovered new exit (range 10) 3782 | -9/Materials | Discovered new exit (range 18) 3902 | -9/Materials | Build established: Mutant 4323 | -9/Materials | Build established: Commander-Mutant 4347 | -9/Materials | Repaired Missile Launcher 4380 | -9/Materials | Repaired Imp. Ion Engine 4419 | -9/Materials | Repaired Adv. Treads 5248 | -9/Materials | Build established: Mutant 5248 | -9/Materials | Discovered new exit (range 14) 5293 | -9/Materials | Identified exit to Mines 5454 | -9/Materials | Discovered new exit (range 18) 5583 | -9/Materials | Entered Mines 5583 | -9/Mines | Accompanied by 2 allies 5594 | -9/Mines | Discovered new exit (range 13) 5602 | -9/Mines | Assembled infested the area 5642 | -9/Mines | Core integrity fell below 50% 5686 | -9/Mines | Lost 5 parts (2n1u2w) 6124 | -9/Mines | A weapon hastily lodged in a ceiling crevice suddenly fell to the ground 6163 | -9/Mines | Found a damaged Exp. Sensor Array with a note attached 6165 | -9/Mines | Found Prototype Device 6193 | -9/Mines | Core integrity fell below 20% 6232 | -9/Mines | Learned location of 1 exit from Proximity Caves 6297 | -9/Mines | A Derelict revealed a hidden shortcut to a safe place 6448 | -9/Mines | Received a Rocket Launcher from a helpful Derelict 6551 | -9/Mines | Discovered new exit (range 3) 7063 | -9/Mines | Lost 3 parts (1p1n1w) 7109 | -9/Mines | Learned Materials terminal intel 7181 | -9/Mines | Entered Materials 7181 | -8/Materials | Evolved 2 slots: Utility x2 7182 | -8/Materials | Loaded intel: 12 terminal locations 7275 | -8/Materials | Identified Exp. Sensor Array 7630 | -8/Materials | Core integrity fell below 50% 7634 | -8/Materials | Core integrity fell below 20% 7644 | -8/Materials | Destroyed by X-62 Marksman with Pulse Rifle Last Messages --------------- 07635_ K-01 Serf collects debris. 07635_ U-05 Engineer builds a Door. 07636_ U-05 Engineer lays Concrete. 07638_ G-47 Trooper destroyed. 07638_ U-05 Engineer lays Concrete. 07638_ K-01 Serf collects debris. 07639_ U-05 Engineer builds a Wall. 07640_ The unstable cave ceiling collapses. 07640_ Aluminum Leg crushed. 07640_ U-05 Engineer lays Concrete. 07641_ Penetrated by Slug. 07641_ U-05 Engineer lays Concrete. 07641_ K-01 Serf collects debris. 07642_ U-05 Engineer lays Concrete. 07642_ W-25 Informer sends out distress signal. 07642_ U-05 Engineer builds a Wall. 07643_ G-47 Trooper destroyed. 07644_ Acquired 44 matter. 07644_ U-05 Engineer lays Concrete. 07644_ Penetrated by Slug. Map ----- +----------------------------------------------------+ | ?????????????????????????????????????????????????? | | ?????????????????????????????????????????????????? | | ?????????????????????????????????????????????????? | | ?????????????????????????????????????????????????? | | ??"T"????????????????????????????????????????????? | | ?????????????????????????????????????????????????? | | ?? ?????????????????????????????????????????????? | | ?? ??????????????????????????????????????????? | | ? ?????????????????????????????????????????? | | ? ??????????????????????????????????????????? | | ? ??????????????????????????????????????????? | | ! ????????????????????????+#?????????????????? | | o ????????????????????????? ?????????????????? | | ????????????????????????? ??????????????????? | | ?T????????????#########?? ??????????????????? | | #??????????????? #?? #??????????????????? | | #??????????????? #? #??????????????????? | | #???????????????? !!! #? #??????????????????? | | #?????????????????!! +? #??????????????????? | | #?????????????????!! # #??????????????????? | | #?????????????????? # #??????????????????? | | #???????????????#### ###Y ##?????????????????? | | T ################### #?????????????????? | | % %^ u #?????????????????? | | #########% k % *% #?????????????????? | | ##???????# =%u[ @== #?????????????????? | | [!#############+######/#%#gxk #?????????????????? | | !%# %## # %%= a ##?????????????????? | | =+ ## ] =+ # % ##??????????????????? | | # = ] ## # "" # ###???????????????????? | | ########## """ # S"" # #?????????????????????? | | ##???????# """ #! "" # #?????????????????????? | | ######### """ ; # #?????????????????????? | | + ######## #?????????????????????? | | ######### ] #????????#?????????????????????? | | #???????########??????????????????????????????? | | #?????????????????????????????????????????????? | | +#####???????????????????????????????????????????? | | #???????????????????????????????????????????? | | """ #???????????????????????????????????????????? | | """ #???????????????????????????????????????????? | | """ #???????????????????????????????????????????? | | #???????????????????????????????????????????? | | ! #???????????????????????????????????????????? | | #???????????????????????????????????????????? | | "T" #???????????????????????????????????????????? | | """ #???????????????????????????????????????????? | | ######???????????????????????????????????????????? | | ?????????????????????????????????????????????????? | | ?????????????????????????????????????????????????? | +----------------------------------------------------+ Best States ------------- Heat Dissipation 31 Energy Generation 14 Energy Capacity 280 Matter Stores 300 Matter Capacity 300 Sight Range 18 Robot Scan Range 20 Terrain Scan Density 10 Armor Coverage 225 Evasion (%) 40 Recoil Reduction 3 Item Schematics ----------------- Hcp. Storage Unit | -9/Materials | Scanalyzed Robot Schematics ------------------ None Fabricated ------------ Nothing Alien Tech Used ----------------- None Achievements -------------- Exterminator Challenges ------------ None Game ------ Seed WarpIonicLoader Manual? 0 Play Time 00:49:52 Cumulative 66.1 hours Start 2022.04.16 @ 15:13:13 End 2022.04.16 @ 16:52:41 Sessions 1 Manual Loads 0 Difficulty Rogue Special Mode None Game No. 102 Rogue 74 Adventurer 28 Explorer 0 Win Type - Total 0 Types 0/0/0/0/0/0/0/0/0 Lore% 23 Gallery% 31 Achievement% 31 Wizard Run 0 Options --------- ASCII 0 Keyboard 0 Movement Mouse Keybinds 0 Fullscreen 2 Font 24/Terminus Map View 84x54 Tactical HUD 1 Map Filters NONE Filters NONE Steam 1 RUN: 3f54d5cb-31ff-4d15-9fc4-286ab97e280e